Workbook

Sheet Sheet1
C1: The Differential
B3: This graphing utility lets you compare
C4: the differential dy based on
C5: the tangent line to the curve
C6: to the actual change Dy
C7: for any Dx
C8: at any desired point.
A11: Enter the function in terms of x: f(x) = | F11: x^3-7*x+4
A14: Now enter the interval for x:
C15: xMin = | D15: 1
C16: xMax = | D16: 5
M19: The graph of the function y = | P19: =F11 -> x^3-7*x+4
A21: Click each item below for suggestions and investigations
C22: Item 1 | M22: Select the point of tangency x0 = | Q22: =P24 -> 3.64
C23: Item 2
C24: Item 3 | O24: 66 | P24: =D15+O24*(D16-D15)/100 -> 3.64
M26: Enter the change Dx in x -- it must be smaller than | S26: =xMax-x0 -> 1.36
O27: Dx = | P27: 0.6
A28: To access/download all the DIGMath Apps for Calculus
A29: Click this link: | C29: DIGMath for Calculus | M29: =IF(OR(dxx>S26,dxx<0),"It must be between 0 and "&TEXT(S26,"0.00"),"") -> 
M30: The actual change Dy in the function = | R30: =Sheet2!H2-Sheet2!H1 -> 23.73099739
A31: Created by: Sheldon P. Gordon
A32: Farmingdale State College | N32: The value of the differential dy = | R32: =Sheet2!H6-Sheet2!H5 -> 19.64090495
A33: Development of this module was supported by the
A34: NSF's Division of Undergraduate Education
A35: under grants DUE-0310123 and DUE-0442160.

Sheet Sheet2
A1: x | B1: f(x) | C1: slope | F1: xl= | G1: =x0 -> 3.64 | H1: =LOOKUP(x0,Sheet2!A3:A1002,Sheet2!B3:B1002) -> 26.66224948 | I1: "=yl
F2: xr= | G2: =x0+dxx -> 4.24 | H2: =LOOKUP(G2,Sheet2!A3:A1003,Sheet2!B3:B1003) -> 50.39324687 | I2: "=yR | J2: secant line
A3: =Sheet1!D15 -> 1.00 | B3: =x^3-7*x+4 -> -2 | C3: =(B4-B3)/Sheet2!$G$18 -> -3.98799602
A4: =A3+Sheet2!G$18 -> 1.00 | B4: -2.015936048 | C4: =(B5-B4)/Sheet2!$G$18 -> -3.963924188
A5: =A4+Sheet2!G$18 -> 1.01 | B5: -2.031775905 | C5: =(B6-B5)/Sheet2!$G$18 -> -3.939756547 | F5: xL = | G5: =x0 -> 3.64 | H5: =H1 -> 26.66224948 | I5: "=yl
A6: =A5+Sheet2!G$18 -> 1.01 | B6: -2.047519188 | C6: =(B7-B6)/Sheet2!$G$18 -> -3.915493098 | F6: xR = | G6: =x0+dxx -> 4.24 | H6: =H1+dxx*LOOKUP(x0,A3:A1002,C3:C1002) -> 46.30315443 | I6: "=yR | J6: tangent line
A7: =A6+Sheet2!G$18 -> 1.02 | B7: -2.063165514 | C7: =(B8-B7)/Sheet2!$G$18 -> -3.891133841
A8: =A7+Sheet2!G$18 -> 1.02 | B8: -2.0787145 | C8: =(B9-B8)/Sheet2!$G$18 -> -3.866678776
A9: =A8+Sheet2!G$18 -> 1.02 | B9: -2.094165764 | C9: =(B10-B9)/Sheet2!$G$18 -> -3.842127902 | F9: Vertical lines
A10: =A9+Sheet2!G$18 -> 1.03 | B10: -2.109518923 | C10: =(B11-B10)/Sheet2!$G$18 -> -3.81748122 | F10: x = | G10: =G$2 -> 4.24 | H10: 0 | I10: "= y
A11: =A10+Sheet2!G$18 -> 1.03 | B11: -2.124773593 | C11: =(B12-B11)/Sheet2!$G$18 -> -3.79273873 | F11: x = | G11: =G$2 -> 4.24 | H11: =H2 -> 50.39324687 | I11: "= y
A12: =A11+Sheet2!G$18 -> 1.04 | B12: -2.139929392 | C12: =(B13-B12)/Sheet2!$G$18 -> -3.767900431
A13: =A12+Sheet2!G$18 -> 1.04 | B13: -2.154985937 | C13: =(B14-B13)/Sheet2!$G$18 -> -3.742966324 | F13: x = | G13: =G$2 -> 4.24 | H13: 0 | I13: "= y
A14: =A13+Sheet2!G$18 -> 1.04 | B14: -2.169942845 | C14: =(B15-B14)/Sheet2!$G$18 -> -3.717936409 | F14: x = | G14: =G$2 -> 4.24 | H14: =H6 -> 46.30315443 | I14: "= y
A15: =A14+Sheet2!G$18 -> 1.05 | B15: -2.184799734 | C15: =(B16-B15)/Sheet2!$G$18 -> -3.692810686
A16: =A15+Sheet2!G$18 -> 1.05 | B16: -2.19955622 | C16: =(B17-B16)/Sheet2!$G$18 -> -3.667589154
A17: =A16+Sheet2!G$18 -> 1.06 | B17: -2.214211921 | C17: =(B18-B17)/Sheet2!$G$18 -> -3.642271814
A18: =A17+Sheet2!G$18 -> 1.06 | B18: -2.228766454 | C18: =(B19-B18)/Sheet2!$G$18 -> -3.616858666 | F18: delta x = | G18: =(Sheet1!D16-Sheet1!D15)/1001 -> 0.003996003996
A19: =A18+Sheet2!G$18 -> 1.06 | B19: -2.243219436 | C19: =(B20-B19)/Sheet2!$G$18 -> -3.591349709
A20: =A19+Sheet2!G$18 -> 1.07 | B20: -2.257570484 | C20: =(B21-B20)/Sheet2!$G$18 -> -3.565744944
A21: =A20+Sheet2!G$18 -> 1.07 | B21: -2.271819215 | C21: =(B22-B21)/Sheet2!$G$18 -> -3.540044371
A22: =A21+Sheet2!G$18 -> 1.08 | B22: -2.285965246 | C22: =(B23-B22)/Sheet2!$G$18 -> -3.51424799
A23: =A22+Sheet2!G$18 -> 1.08 | B23: -2.300008195 | C23: =(B24-B23)/Sheet2!$G$18 -> -3.4883558
A24: =A23+Sheet2!G$18 -> 1.08 | B24: -2.313947679 | C24: =(B25-B24)/Sheet2!$G$18 -> -3.462367802
A25: =A24+Sheet2!G$18 -> 1.09 | B25: -2.327783314 | C25: =(B26-B25)/Sheet2!$G$18 -> -3.436283996
A26: =A25+Sheet2!G$18 -> 1.09 | B26: -2.341514719 | C26: =(B27-B26)/Sheet2!$G$18 -> -3.410104381
A27: =A26+Sheet2!G$18 -> 1.10 | B27: -2.35514151 | C27: =(B28-B27)/Sheet2!$G$18 -> -3.383828958
A28: =A27+Sheet2!G$18 -> 1.10 | B28: -2.368663304 | C28: =(B29-B28)/Sheet2!$G$18 -> -3.357457727
A29: =A28+Sheet2!G$18 -> 1.10 | B29: -2.382079718 | C29: =(B30-B29)/Sheet2!$G$18 -> -3.330990688
A30: =A29+Sheet2!G$18 -> 1.11 | B30: -2.39539037 | C30: =(B31-B30)/Sheet2!$G$18 -> -3.30442784
A31: =A30+Sheet2!G$18 -> 1.11 | B31: -2.408594877 | C31: =(B32-B31)/Sheet2!$G$18 -> -3.277769184
A32: =A31+Sheet2!G$18 -> 1.12 | B32: -2.421692856 | C32: =(B33-B32)/Sheet2!$G$18 -> -3.25101472
A33: =A32+Sheet2!G$18 -> 1.12 | B33: -2.434683924 | C33: =(B34-B33)/Sheet2!$G$18 -> -3.224164447
A34: =A33+Sheet2!G$18 -> 1.12 | B34: -2.447567698 | C34: =(B35-B34)/Sheet2!$G$18 -> -3.197218366
A35: =A34+Sheet2!G$18 -> 1.13 | B35: -2.460343795 | C35: =(B36-B35)/Sheet2!$G$18 -> -3.170176477
A36: =A35+Sheet2!G$18 -> 1.13 | B36: -2.473011833 | C36: =(B37-B36)/Sheet2!$G$18 -> -3.143038779
A37: =A36+Sheet2!G$18 -> 1.14 | B37: -2.485571429 | C37: =(B38-B37)/Sheet2!$G$18 -> -3.115805274
A38: =A37+Sheet2!G$18 -> 1.14 | B38: -2.498022199 | C38: =(B39-B38)/Sheet2!$G$18 -> -3.08847596
A39: =A38+Sheet2!G$18 -> 1.14 | B39: -2.510363761 | C39: =(B40-B39)/Sheet2!$G$18 -> -3.061050837
A40: =A39+Sheet2!G$18 -> 1.15 | B40: -2.522595732 | C40: =(B41-B40)/Sheet2!$G$18 -> -3.033529907
A41: =A40+Sheet2!G$18 -> 1.15 | B41: -2.53471773 | C41: =(B42-B41)/Sheet2!$G$18 -> -3.005913168
A42: =A41+Sheet2!G$18 -> 1.16 | B42: -2.546729371 | C42: =(B43-B42)/Sheet2!$G$18 -> -2.978200621
A43: =A42+Sheet2!G$18 -> 1.16 | B43: -2.558630273 | C43: =(B44-B43)/Sheet2!$G$18 -> -2.950392265
A44: =A43+Sheet2!G$18 -> 1.16 | B44: -2.570420052 | C44: =(B45-B44)/Sheet2!$G$18 -> -2.922488101
A45: =A44+Sheet2!G$18 -> 1.17 | B45: -2.582098326 | C45: =(B46-B45)/Sheet2!$G$18 -> -2.894488129
A46: =A45+Sheet2!G$18 -> 1.17 | B46: -2.593664712 | C46: =(B47-B46)/Sheet2!$G$18 -> -2.866392349
A47: =A46+Sheet2!G$18 -> 1.18 | B47: -2.605118828 | C47: =(B48-B47)/Sheet2!$G$18 -> -2.83820076
A48: =A47+Sheet2!G$18 -> 1.18 | B48: -2.616460289 | C48: =(B49-B48)/Sheet2!$G$18 -> -2.809913363
A49: =A48+Sheet2!G$18 -> 1.18 | B49: -2.627688714 | C49: =(B50-B49)/Sheet2!$G$18 -> -2.781530158
A50: =A49+Sheet2!G$18 -> 1.19 | B50: -2.63880372 | C50: =(B51-B50)/Sheet2!$G$18 -> -2.753051145
A51: =A50+Sheet2!G$18 -> 1.19 | B51: -2.649804923 | C51: =(B52-B51)/Sheet2!$G$18 -> -2.724476323
A52: =A51+Sheet2!G$18 -> 1.20 | B52: -2.660691941 | C52: =(B53-B52)/Sheet2!$G$18 -> -2.695805693
A53: =A52+Sheet2!G$18 -> 1.20 | B53: -2.671464392 | C53: =(B54-B53)/Sheet2!$G$18 -> -2.667039254
A54: =A53+Sheet2!G$18 -> 1.20 | B54: -2.682121891 | C54: =(B55-B54)/Sheet2!$G$18 -> -2.638177008
A55: =A54+Sheet2!G$18 -> 1.21 | B55: -2.692664057 | C55: =(B56-B55)/Sheet2!$G$18 -> -2.609218953
A56: =A55+Sheet2!G$18 -> 1.21 | B56: -2.703090507 | C56: =(B57-B56)/Sheet2!$G$18 -> -2.58016509
A57: =A56+Sheet2!G$18 -> 1.22 | B57: -2.713400857 | C57: =(B58-B57)/Sheet2!$G$18 -> -2.551015418
A58: =A57+Sheet2!G$18 -> 1.22 | B58: -2.723594724 | C58: =(B59-B58)/Sheet2!$G$18 -> -2.521769938
A59: =A58+Sheet2!G$18 -> 1.22 | B59: -2.733671727 | C59: =(B60-B59)/Sheet2!$G$18 -> -2.49242865
A60: =A59+Sheet2!G$18 -> 1.23 | B60: -2.743631482 | C60: =(B61-B60)/Sheet2!$G$18 -> -2.462991554
A61: =A60+Sheet2!G$18 -> 1.23 | B61: -2.753473606 | C61: =(B62-B61)/Sheet2!$G$18 -> -2.433458649
A62: =A61+Sheet2!G$18 -> 1.24 | B62: -2.763197716 | C62: =(B63-B62)/Sheet2!$G$18 -> -2.403829936
A63: =A62+Sheet2!G$18 -> 1.24 | B63: -2.772803431 | C63: =(B64-B63)/Sheet2!$G$18 -> -2.374105415
A64: =A63+Sheet2!G$18 -> 1.24 | B64: -2.782290365 | C64: =(B65-B64)/Sheet2!$G$18 -> -2.344285086
A65: =A64+Sheet2!G$18 -> 1.25 | B65: -2.791658138 | C65: =(B66-B65)/Sheet2!$G$18 -> -2.314368948
A66: =A65+Sheet2!G$18 -> 1.25 | B66: -2.800906365 | C66: =(B67-B66)/Sheet2!$G$18 -> -2.284357002
A67: =A66+Sheet2!G$18 -> 1.26 | B67: =x^3-7*x+4 -> -2.810034665 | C67: =(B68-B67)/Sheet2!$G$18 -> -2.254249247
A68: =A67+Sheet2!G$18 -> 1.26 | B68: -2.819042654 | C68: =(B69-B68)/Sheet2!$G$18 -> -2.224045685
A69: =A68+Sheet2!G$18 -> 1.26 | B69: -2.82792995 | C69: =(B70-B69)/Sheet2!$G$18 -> -2.193746314
A70: =A69+Sheet2!G$18 -> 1.27 | B70: -2.836696169 | C70: =(B71-B70)/Sheet2!$G$18 -> -2.163351134
A71: =A70+Sheet2!G$18 -> 1.27 | B71: -2.845340928 | C71: =(B72-B71)/Sheet2!$G$18 -> -2.132860147
A72: =A71+Sheet2!G$18 -> 1.28 | B72: -2.853863846 | C72: =(B73-B72)/Sheet2!$G$18 -> -2.102273351
A73: =A72+Sheet2!G$18 -> 1.28 | B73: -2.862264539 | C73: =(B74-B73)/Sheet2!$G$18 -> -2.071590747
A74: =A73+Sheet2!G$18 -> 1.28 | B74: -2.870542624 | C74: =(B75-B74)/Sheet2!$G$18 -> -2.040812335
A75: =A74+Sheet2!G$18 -> 1.29 | B75: -2.878697718 | C75: =(B76-B75)/Sheet2!$G$18 -> -2.009938114
A76: =A75+Sheet2!G$18 -> 1.29 | B76: -2.886729439 | C76: =(B77-B76)/Sheet2!$G$18 -> -1.978968085
A77: =A76+Sheet2!G$18 -> 1.30 | B77: -2.894637403 | C77: =(B78-B77)/Sheet2!$G$18 -> -1.947902248
A78: =A77+Sheet2!G$18 -> 1.30 | B78: -2.902421228 | C78: =(B79-B78)/Sheet2!$G$18 -> -1.916740602
A79: =A78+Sheet2!G$18 -> 1.30 | B79: -2.910080531 | C79: =(B80-B79)/Sheet2!$G$18 -> -1.885483148
A80: =A79+Sheet2!G$18 -> 1.31 | B80: -2.917614929 | C80: =(B81-B80)/Sheet2!$G$18 -> -1.854129886
A81: =A80+Sheet2!G$18 -> 1.31 | B81: -2.92502404 | C81: =(B82-B81)/Sheet2!$G$18 -> -1.822680816
A82: =A81+Sheet2!G$18 -> 1.32 | B82: -2.93230748 | C82: =(B83-B82)/Sheet2!$G$18 -> -1.791135937
A83: =A82+Sheet2!G$18 -> 1.32 | B83: -2.939464866 | C83: =(B84-B83)/Sheet2!$G$18 -> -1.75949525
A84: =A83+Sheet2!G$18 -> 1.32 | B84: -2.946495816 | C84: =(B85-B84)/Sheet2!$G$18 -> -1.727758755
A85: =A84+Sheet2!G$18 -> 1.33 | B85: -2.953399947 | C85: =(B86-B85)/Sheet2!$G$18 -> -1.695926451
A86: =A85+Sheet2!G$18 -> 1.33 | B86: -2.960176876 | C86: =(B87-B86)/Sheet2!$G$18 -> -1.663998339
A87: =A86+Sheet2!G$18 -> 1.34 | B87: -2.96682622 | C87: =(B88-B87)/Sheet2!$G$18 -> -1.631974419
A88: =A87+Sheet2!G$18 -> 1.34 | B88: -2.973347596 | C88: =(B89-B88)/Sheet2!$G$18 -> -1.599854691
A89: =A88+Sheet2!G$18 -> 1.34 | B89: -2.979740622 | C89: =(B90-B89)/Sheet2!$G$18 -> -1.567639154
A90: =A89+Sheet2!G$18 -> 1.35 | B90: -2.986004914 | C90: =(B91-B90)/Sheet2!$G$18 -> -1.535327809
A91: =A90+Sheet2!G$18 -> 1.35 | B91: -2.99214009 | C91: =(B92-B91)/Sheet2!$G$18 -> -1.502920656
A92: =A91+Sheet2!G$18 -> 1.36 | B92: -2.998145767 | C92: =(B93-B92)/Sheet2!$G$18 -> -1.470417694
A93: =A92+Sheet2!G$18 -> 1.36 | B93: -3.004021562 | C93: =(B94-B93)/Sheet2!$G$18 -> -1.437818924
A94: =A93+Sheet2!G$18 -> 1.36 | B94: -3.009767092 | C94: =(B95-B94)/Sheet2!$G$18 -> -1.405124346
A95: =A94+Sheet2!G$18 -> 1.37 | B95: -3.015381975 | C95: =(B96-B95)/Sheet2!$G$18 -> -1.37233396
A96: =A95+Sheet2!G$18 -> 1.37 | B96: -3.020865827 | C96: =(B97-B96)/Sheet2!$G$18 -> -1.339447765
A97: =A96+Sheet2!G$18 -> 1.38 | B97: -3.026218266 | C97: =(B98-B97)/Sheet2!$G$18 -> -1.306465762
A98: =A97+Sheet2!G$18 -> 1.38 | B98: -3.031438908 | C98: =(B99-B98)/Sheet2!$G$18 -> -1.273387951
A99: =A98+Sheet2!G$18 -> 1.38 | B99: -3.036527371 | C99: =(B100-B99)/Sheet2!$G$18 -> -1.240214331
A100: =A99+Sheet2!G$18 -> 1.39 | B100: -3.041483273 | C100: =(B101-B100)/Sheet2!$G$18 -> -1.206944903
A101: =A100+Sheet2!G$18 -> 1.39 | B101: -3.046306229 | C101: =(B102-B101)/Sheet2!$G$18 -> -1.173579667
A102: =A101+Sheet2!G$18 -> 1.40 | B102: -3.050995858 | C102: =(B103-B102)/Sheet2!$G$18 -> -1.140118623
A103: =A102+Sheet2!G$18 -> 1.40 | B103: -3.055551777 | C103: =(B104-B103)/Sheet2!$G$18 -> -1.10656177
A104: =A103+Sheet2!G$18 -> 1.40 | B104: -3.059973602 | C104: =(B105-B104)/Sheet2!$G$18 -> -1.072909109
A105: =A104+Sheet2!G$18 -> 1.41 | B105: -3.064260951 | C105: =(B106-B105)/Sheet2!$G$18 -> -1.03916064
A106: =A105+Sheet2!G$18 -> 1.41 | B106: -3.068413441 | C106: =(B107-B106)/Sheet2!$G$18 -> -1.005316362
A107: =A106+Sheet2!G$18 -> 1.42 | B107: -3.07243069 | C107: =(B108-B107)/Sheet2!$G$18 -> -0.9713762761
A108: =A107+Sheet2!G$18 -> 1.42 | B108: -3.076312313 | C108: =(B109-B108)/Sheet2!$G$18 -> -0.9373403819
A109: =A108+Sheet2!G$18 -> 1.42 | B109: -3.080057929 | C109: =(B110-B109)/Sheet2!$G$18 -> -0.9032086794
A110: =A109+Sheet2!G$18 -> 1.43 | B110: -3.083667154 | C110: =(B111-B110)/Sheet2!$G$18 -> -0.8689811687
A111: =A110+Sheet2!G$18 -> 1.43 | B111: -3.087139607 | C111: =(B112-B111)/Sheet2!$G$18 -> -0.8346578496
A112: =A111+Sheet2!G$18 -> 1.44 | B112: -3.090474903 | C112: =(B113-B112)/Sheet2!$G$18 -> -0.8002387223
A113: =A112+Sheet2!G$18 -> 1.44 | B113: -3.09367266 | C113: =(B114-B113)/Sheet2!$G$18 -> -0.7657237867
A114: =A113+Sheet2!G$18 -> 1.44 | B114: -3.096732495 | C114: =(B115-B114)/Sheet2!$G$18 -> -0.7311130428
A115: =A114+Sheet2!G$18 -> 1.45 | B115: -3.099654026 | C115: =(B116-B115)/Sheet2!$G$18 -> -0.6964064906
A116: =A115+Sheet2!G$18 -> 1.45 | B116: -3.102436869 | C116: =(B117-B116)/Sheet2!$G$18 -> -0.6616041301
A117: =A116+Sheet2!G$18 -> 1.46 | B117: -3.105080642 | C117: =(B118-B117)/Sheet2!$G$18 -> -0.6267059614
A118: =A117+Sheet2!G$18 -> 1.46 | B118: -3.107584961 | C118: =(B119-B118)/Sheet2!$G$18 -> -0.5917119843
A119: =A118+Sheet2!G$18 -> 1.46 | B119: -3.109949445 | C119: =(B120-B119)/Sheet2!$G$18 -> -0.556622199
A120: =A119+Sheet2!G$18 -> 1.47 | B120: -3.112173709 | C120: =(B121-B120)/Sheet2!$G$18 -> -0.5214366054
A121: =A120+Sheet2!G$18 -> 1.47 | B121: -3.114257372 | C121: =(B122-B121)/Sheet2!$G$18 -> -0.4861552034
A122: =A121+Sheet2!G$18 -> 1.48 | B122: -3.11620005 | C122: =(B123-B122)/Sheet2!$G$18 -> -0.4507779932
A123: =A122+Sheet2!G$18 -> 1.48 | B123: -3.118001361 | C123: =(B124-B123)/Sheet2!$G$18 -> -0.4153049747
A124: =A123+Sheet2!G$18 -> 1.48 | B124: -3.119660921 | C124: =(B125-B124)/Sheet2!$G$18 -> -0.379736148
A125: =A124+Sheet2!G$18 -> 1.49 | B125: -3.121178348 | C125: =(B126-B125)/Sheet2!$G$18 -> -0.3440715129
A126: =A125+Sheet2!G$18 -> 1.49 | B126: -3.122553259 | C126: =(B127-B126)/Sheet2!$G$18 -> -0.3083110695
A127: =A126+Sheet2!G$18 -> 1.50 | B127: -3.123785272 | C127: =(B128-B127)/Sheet2!$G$18 -> -0.2724548179
A128: =A127+Sheet2!G$18 -> 1.50 | B128: -3.124874002 | C128: =(B129-B128)/Sheet2!$G$18 -> -0.236502758
A129: =A128+Sheet2!G$18 -> 1.50 | B129: -3.125819068 | C129: =(B130-B129)/Sheet2!$G$18 -> -0.2004548898
A130: =A129+Sheet2!G$18 -> 1.51 | B130: -3.126620087 | C130: =(B131-B130)/Sheet2!$G$18 -> -0.1643112133
A131: =A130+Sheet2!G$18 -> 1.51 | B131: =x^3-7*x+4 -> -3.127276675 | C131: =(B132-B131)/Sheet2!$G$18 -> -0.1280717285
A132: =A131+Sheet2!G$18 -> 1.52 | B132: -3.12778845 | C132: =(B133-B132)/Sheet2!$G$18 -> -0.09173643539
A133: =A132+Sheet2!G$18 -> 1.52 | B133: -3.128155029 | C133: =(B134-B133)/Sheet2!$G$18 -> -0.05530533403
A134: =A133+Sheet2!G$18 -> 1.52 | B134: -3.12837603 | C134: =(B135-B134)/Sheet2!$G$18 -> -0.01877842437
A135: =A134+Sheet2!G$18 -> 1.53 | B135: -3.128451068 | C135: =(B136-B135)/Sheet2!$G$18 -> 0.01784429357
A136: =A135+Sheet2!G$18 -> 1.53 | B136: -3.128379762 | C136: =(B137-B136)/Sheet2!$G$18 -> 0.0545628198
A137: =A136+Sheet2!G$18 -> 1.54 | B137: -3.128161729 | C137: =(B138-B137)/Sheet2!$G$18 -> 0.09137715431
A138: =A137+Sheet2!G$18 -> 1.54 | B138: -3.127796586 | C138: =(B139-B138)/Sheet2!$G$18 -> 0.1282872971
A139: =A138+Sheet2!G$18 -> 1.54 | B139: -3.127283949 | C139: =(B140-B139)/Sheet2!$G$18 -> 0.1652932482
A140: =A139+Sheet2!G$18 -> 1.55 | B140: -3.126623437 | C140: =(B141-B140)/Sheet2!$G$18 -> 0.2023950076
A141: =A140+Sheet2!G$18 -> 1.55 | B141: -3.125814665 | C141: =(B142-B141)/Sheet2!$G$18 -> 0.2395925753
A142: =A141+Sheet2!G$18 -> 1.56 | B142: -3.124857253 | C142: =(B143-B142)/Sheet2!$G$18 -> 0.2768859512
A143: =A142+Sheet2!G$18 -> 1.56 | B143: -3.123750815 | C143: =(B144-B143)/Sheet2!$G$18 -> 0.3142751355
A144: =A143+Sheet2!G$18 -> 1.56 | B144: -3.12249497 | C144: =(B145-B144)/Sheet2!$G$18 -> 0.351760128
A145: =A144+Sheet2!G$18 -> 1.57 | B145: -3.121089336 | C145: =(B146-B145)/Sheet2!$G$18 -> 0.3893409288
A146: =A145+Sheet2!G$18 -> 1.57 | B146: -3.119533528 | C146: =(B147-B146)/Sheet2!$G$18 -> 0.4270175379
A147: =A146+Sheet2!G$18 -> 1.58 | B147: -3.117827164 | C147: =(B148-B147)/Sheet2!$G$18 -> 0.4647899553
A148: =A147+Sheet2!G$18 -> 1.58 | B148: -3.115969861 | C148: =(B149-B148)/Sheet2!$G$18 -> 0.502658181
A149: =A148+Sheet2!G$18 -> 1.58 | B149: -3.113961237 | C149: =(B150-B149)/Sheet2!$G$18 -> 0.5406222149
A150: =A149+Sheet2!G$18 -> 1.59 | B150: -3.111800909 | C150: =(B151-B150)/Sheet2!$G$18 -> 0.5786820572
A151: =A150+Sheet2!G$18 -> 1.59 | B151: -3.109488493 | C151: =(B152-B151)/Sheet2!$G$18 -> 0.6168377077
A152: =A151+Sheet2!G$18 -> 1.60 | B152: -3.107023607 | C152: =(B153-B152)/Sheet2!$G$18 -> 0.6550891666
A153: =A152+Sheet2!G$18 -> 1.60 | B153: -3.104405868 | C153: =(B154-B153)/Sheet2!$G$18 -> 0.6934364337
A154: =A153+Sheet2!G$18 -> 1.60 | B154: -3.101634893 | C154: =(B155-B154)/Sheet2!$G$18 -> 0.7318795091
A155: =A154+Sheet2!G$18 -> 1.61 | B155: -3.0987103 | C155: =(B156-B155)/Sheet2!$G$18 -> 0.7704183928
A156: =A155+Sheet2!G$18 -> 1.61 | B156: -3.095631705 | C156: =(B157-B156)/Sheet2!$G$18 -> 0.8090530848
A157: =A156+Sheet2!G$18 -> 1.62 | B157: -3.092398726 | C157: =(B158-B157)/Sheet2!$G$18 -> 0.847783585
A158: =A157+Sheet2!G$18 -> 1.62 | B158: -3.089010979 | C158: =(B159-B158)/Sheet2!$G$18 -> 0.8866098936
A159: =A158+Sheet2!G$18 -> 1.62 | B159: -3.085468082 | C159: =(B160-B159)/Sheet2!$G$18 -> 0.9255320104
A160: =A159+Sheet2!G$18 -> 1.63 | B160: -3.081769653 | C160: =(B161-B160)/Sheet2!$G$18 -> 0.9645499356
A161: =A160+Sheet2!G$18 -> 1.63 | B161: -3.077915307 | C161: =(B162-B161)/Sheet2!$G$18 -> 1.003663669
A162: =A161+Sheet2!G$18 -> 1.64 | B162: -3.073904663 | C162: =(B163-B162)/Sheet2!$G$18 -> 1.042873211
A163: =A162+Sheet2!G$18 -> 1.64 | B163: -3.069737338 | C163: =(B164-B163)/Sheet2!$G$18 -> 1.082178561
A164: =A163+Sheet2!G$18 -> 1.64 | B164: -3.065412948 | C164: =(B165-B164)/Sheet2!$G$18 -> 1.121579719
A165: =A164+Sheet2!G$18 -> 1.65 | B165: -3.060931111 | C165: =(B166-B165)/Sheet2!$G$18 -> 1.161076686
A166: =A165+Sheet2!G$18 -> 1.65 | B166: -3.056291444 | C166: =(B167-B166)/Sheet2!$G$18 -> 1.20066946
A167: =A166+Sheet2!G$18 -> 1.66 | B167: -3.051493564 | C167: =(B168-B167)/Sheet2!$G$18 -> 1.240358044
A168: =A167+Sheet2!G$18 -> 1.66 | B168: -3.046537088 | C168: =(B169-B168)/Sheet2!$G$18 -> 1.280142435
A169: =A168+Sheet2!G$18 -> 1.66 | B169: -3.041421634 | C169: =(B170-B169)/Sheet2!$G$18 -> 1.320022635
A170: =A169+Sheet2!G$18 -> 1.67 | B170: -3.036146818 | C170: =(B171-B170)/Sheet2!$G$18 -> 1.359998643
A171: =A170+Sheet2!G$18 -> 1.67 | B171: -3.030712258 | C171: =(B172-B171)/Sheet2!$G$18 -> 1.400070459
A172: =A171+Sheet2!G$18 -> 1.68 | B172: -3.025117571 | C172: =(B173-B172)/Sheet2!$G$18 -> 1.440238084
A173: =A172+Sheet2!G$18 -> 1.68 | B173: -3.019362374 | C173: =(B174-B173)/Sheet2!$G$18 -> 1.480501516
A174: =A173+Sheet2!G$18 -> 1.68 | B174: -3.013446284 | C174: =(B175-B174)/Sheet2!$G$18 -> 1.520860758
A175: =A174+Sheet2!G$18 -> 1.69 | B175: -3.007368918 | C175: =(B176-B175)/Sheet2!$G$18 -> 1.561315807
A176: =A175+Sheet2!G$18 -> 1.69 | B176: -3.001129894 | C176: =(B177-B176)/Sheet2!$G$18 -> 1.601866665
A177: =A176+Sheet2!G$18 -> 1.70 | B177: -2.994728828 | C177: =(B178-B177)/Sheet2!$G$18 -> 1.642513331
A178: =A177+Sheet2!G$18 -> 1.70 | B178: -2.988165339 | C178: =(B179-B178)/Sheet2!$G$18 -> 1.683255805
A179: =A178+Sheet2!G$18 -> 1.70 | B179: -2.981439042 | C179: =(B180-B179)/Sheet2!$G$18 -> 1.724094088
A180: =A179+Sheet2!G$18 -> 1.71 | B180: -2.974549555 | C180: =(B181-B180)/Sheet2!$G$18 -> 1.765028179
A181: =A180+Sheet2!G$18 -> 1.71 | B181: -2.967496495 | C181: =(B182-B181)/Sheet2!$G$18 -> 1.806058078
A182: =A181+Sheet2!G$18 -> 1.72 | B182: -2.96027948 | C182: =(B183-B182)/Sheet2!$G$18 -> 1.847183785
A183: =A182+Sheet2!G$18 -> 1.72 | B183: -2.952898126 | C183: =(B184-B183)/Sheet2!$G$18 -> 1.888405301
A184: =A183+Sheet2!G$18 -> 1.72 | B184: -2.945352051 | C184: =(B185-B184)/Sheet2!$G$18 -> 1.929722625
A185: =A184+Sheet2!G$18 -> 1.73 | B185: -2.937640872 | C185: =(B186-B185)/Sheet2!$G$18 -> 1.971135757
A186: =A185+Sheet2!G$18 -> 1.73 | B186: -2.929764205 | C186: =(B187-B186)/Sheet2!$G$18 -> 2.012644698
A187: =A186+Sheet2!G$18 -> 1.74 | B187: -2.921721669 | C187: =(B188-B187)/Sheet2!$G$18 -> 2.054249447
A188: =A187+Sheet2!G$18 -> 1.74 | B188: -2.91351288 | C188: =(B189-B188)/Sheet2!$G$18 -> 2.095950004
A189: =A188+Sheet2!G$18 -> 1.74 | B189: -2.905137455 | C189: =(B190-B189)/Sheet2!$G$18 -> 2.13774637
A190: =A189+Sheet2!G$18 -> 1.75 | B190: -2.896595012 | C190: =(B191-B190)/Sheet2!$G$18 -> 2.179638543
A191: =A190+Sheet2!G$18 -> 1.75 | B191: -2.887885168 | C191: =(B192-B191)/Sheet2!$G$18 -> 2.221626525
A192: =A191+Sheet2!G$18 -> 1.76 | B192: -2.879007539 | C192: =(B193-B192)/Sheet2!$G$18 -> 2.263710316
A193: =A192+Sheet2!G$18 -> 1.76 | B193: -2.869961744 | C193: =(B194-B193)/Sheet2!$G$18 -> 2.305889914
A194: =A193+Sheet2!G$18 -> 1.76 | B194: -2.860747399 | C194: =(B195-B194)/Sheet2!$G$18 -> 2.348165321
A195: =A194+Sheet2!G$18 -> 1.77 | B195: =x^3-7*x+4 -> -2.851364121 | C195: =(B196-B195)/Sheet2!$G$18 -> 2.390536536
A196: =A195+Sheet2!G$18 -> 1.77 | B196: -2.841811527 | C196: =(B197-B196)/Sheet2!$G$18 -> 2.43300356
A197: =A196+Sheet2!G$18 -> 1.78 | B197: -2.832089235 | C197: =(B198-B197)/Sheet2!$G$18 -> 2.475566392
A198: =A197+Sheet2!G$18 -> 1.78 | B198: -2.822196862 | C198: =(B199-B198)/Sheet2!$G$18 -> 2.518225032
A199: =A198+Sheet2!G$18 -> 1.78 | B199: -2.812134025 | C199: =(B200-B199)/Sheet2!$G$18 -> 2.56097948
A200: =A199+Sheet2!G$18 -> 1.79 | B200: -2.80190034 | C200: =(B201-B200)/Sheet2!$G$18 -> 2.603829737
... 804 more rows

Sheet Sheet3
A1: =xMin -> 1 | B1: =9 -> 9
A2: =A1+dx -> 1.003996004 | B2: =9 -> 9
A3: 1.007992008 | B3: =9 -> 9
A4: 1.011988012 | B4: =9 -> 9
A5: 1.015984016 | B5: =9 -> 9
A6: 1.01998002 | B6: =9 -> 9
A7: 1.023976024 | B7: =9 -> 9
A8: 1.027972028 | B8: =9 -> 9
A9: 1.031968032 | B9: =9 -> 9
A10: 1.035964036 | B10: =9 -> 9
A11: 1.03996004 | B11: =9 -> 9
A12: 1.043956044 | B12: =9 -> 9
A13: 1.047952048 | B13: =9 -> 9
A14: 1.051948052 | B14: =9 -> 9
A15: 1.055944056 | B15: =9 -> 9
A16: 1.05994006 | B16: =9 -> 9
A17: 1.063936064 | B17: =9 -> 9
A18: 1.067932068 | B18: =9 -> 9
A19: 1.071928072 | B19: =9 -> 9
A20: 1.075924076 | B20: =9 -> 9
A21: 1.07992008 | B21: =9 -> 9
A22: 1.083916084 | B22: =9 -> 9
A23: 1.087912088 | B23: =9 -> 9
A24: 1.091908092 | B24: =9 -> 9
A25: 1.095904096 | B25: =9 -> 9
A26: 1.0999001 | B26: =9 -> 9
A27: 1.103896104 | B27: =9 -> 9
A28: 1.107892108 | B28: =9 -> 9
A29: 1.111888112 | B29: =9 -> 9
A30: 1.115884116 | B30: =9 -> 9
A31: 1.11988012 | B31: =9 -> 9
A32: 1.123876124 | B32: =9 -> 9
A33: 1.127872128 | B33: =9 -> 9
A34: 1.131868132 | B34: =9 -> 9
A35: 1.135864136 | B35: =9 -> 9
A36: 1.13986014 | B36: =9 -> 9
A37: 1.143856144 | B37: =9 -> 9
A38: 1.147852148 | B38: =9 -> 9
A39: 1.151848152 | B39: =9 -> 9
A40: 1.155844156 | B40: =9 -> 9
A41: 1.15984016 | B41: =9 -> 9
A42: 1.163836164 | B42: =9 -> 9
A43: 1.167832168 | B43: =9 -> 9
A44: 1.171828172 | B44: =9 -> 9
A45: 1.175824176 | B45: =9 -> 9
A46: 1.17982018 | B46: =9 -> 9
A47: 1.183816184 | B47: =9 -> 9
A48: 1.187812188 | B48: =9 -> 9
A49: 1.191808192 | B49: =9 -> 9
A50: 1.195804196 | B50: =9 -> 9
A51: 1.1998002 | B51: =9 -> 9
A52: 1.203796204 | B52: =9 -> 9
A53: 1.207792208 | B53: =9 -> 9
A54: 1.211788212 | B54: =9 -> 9
A55: 1.215784216 | B55: =9 -> 9
A56: 1.21978022 | B56: =9 -> 9
A57: 1.223776224 | B57: =9 -> 9
A58: 1.227772228 | B58: =9 -> 9
A59: 1.231768232 | B59: =9 -> 9
A60: 1.235764236 | B60: =9 -> 9
A61: 1.23976024 | B61: =9 -> 9
A62: 1.243756244 | B62: =9 -> 9
A63: 1.247752248 | B63: =9 -> 9
A64: 1.251748252 | B64: =9 -> 9
A65: 1.255744256 | B65: =9 -> 9
A66: =A65+dx -> 1.25974026 | B66: =9 -> 9
A67: 1.263736264 | B67: =9 -> 9
A68: 1.267732268 | B68: =9 -> 9
A69: 1.271728272 | B69: =9 -> 9
A70: 1.275724276 | B70: =9 -> 9
A71: 1.27972028 | B71: =9 -> 9
A72: 1.283716284 | B72: =9 -> 9
A73: 1.287712288 | B73: =9 -> 9
A74: 1.291708292 | B74: =9 -> 9
A75: 1.295704296 | B75: =9 -> 9
A76: 1.2997003 | B76: =9 -> 9
A77: 1.303696304 | B77: =9 -> 9
A78: 1.307692308 | B78: =9 -> 9
A79: 1.311688312 | B79: =9 -> 9
A80: 1.315684316 | B80: =9 -> 9
A81: 1.31968032 | B81: =9 -> 9
A82: 1.323676324 | B82: =9 -> 9
A83: 1.327672328 | B83: =9 -> 9
A84: 1.331668332 | B84: =9 -> 9
A85: 1.335664336 | B85: =9 -> 9
A86: 1.33966034 | B86: =9 -> 9
A87: 1.343656344 | B87: =9 -> 9
A88: 1.347652348 | B88: =9 -> 9
A89: 1.351648352 | B89: =9 -> 9
A90: 1.355644356 | B90: =9 -> 9
A91: 1.35964036 | B91: =9 -> 9
A92: 1.363636364 | B92: =9 -> 9
A93: 1.367632368 | B93: =9 -> 9
A94: 1.371628372 | B94: =9 -> 9
A95: 1.375624376 | B95: =9 -> 9
A96: 1.37962038 | B96: =9 -> 9
A97: 1.383616384 | B97: =9 -> 9
A98: 1.387612388 | B98: =9 -> 9
A99: 1.391608392 | B99: =9 -> 9
A100: 1.395604396 | B100: =9 -> 9
A101: 1.3996004 | B101: =9 -> 9
A102: 1.403596404 | B102: =9 -> 9
A103: 1.407592408 | B103: =9 -> 9
A104: 1.411588412 | B104: =9 -> 9
A105: 1.415584416 | B105: =9 -> 9
A106: 1.41958042 | B106: =9 -> 9
A107: 1.423576424 | B107: =9 -> 9
A108: 1.427572428 | B108: =9 -> 9
A109: 1.431568432 | B109: =9 -> 9
A110: 1.435564436 | B110: =9 -> 9
A111: 1.43956044 | B111: =9 -> 9
A112: 1.443556444 | B112: =9 -> 9
A113: 1.447552448 | B113: =9 -> 9
A114: 1.451548452 | B114: =9 -> 9
A115: 1.455544456 | B115: =9 -> 9
A116: 1.45954046 | B116: =9 -> 9
A117: 1.463536464 | B117: =9 -> 9
A118: 1.467532468 | B118: =9 -> 9
A119: 1.471528472 | B119: =9 -> 9
A120: 1.475524476 | B120: =9 -> 9
A121: 1.47952048 | B121: =9 -> 9
A122: 1.483516484 | B122: =9 -> 9
A123: 1.487512488 | B123: =9 -> 9
A124: 1.491508492 | B124: =9 -> 9
A125: 1.495504496 | B125: =9 -> 9
A126: 1.4995005 | B126: =9 -> 9
A127: 1.503496503 | B127: =9 -> 9
A128: 1.507492507 | B128: =9 -> 9
A129: 1.511488511 | B129: =9 -> 9
A130: =A129+dx -> 1.515484515 | B130: =9 -> 9
A131: 1.519480519 | B131: =9 -> 9
A132: 1.523476523 | B132: =9 -> 9
A133: 1.527472527 | B133: =9 -> 9
A134: 1.531468531 | B134: =9 -> 9
A135: 1.535464535 | B135: =9 -> 9
A136: 1.539460539 | B136: =9 -> 9
A137: 1.543456543 | B137: =9 -> 9
A138: 1.547452547 | B138: =9 -> 9
A139: 1.551448551 | B139: =9 -> 9
A140: 1.555444555 | B140: =9 -> 9
A141: 1.559440559 | B141: =9 -> 9
A142: 1.563436563 | B142: =9 -> 9
A143: 1.567432567 | B143: =9 -> 9
A144: 1.571428571 | B144: =9 -> 9
A145: 1.575424575 | B145: =9 -> 9
A146: 1.579420579 | B146: =9 -> 9
A147: 1.583416583 | B147: =9 -> 9
A148: 1.587412587 | B148: =9 -> 9
A149: 1.591408591 | B149: =9 -> 9
A150: 1.595404595 | B150: =9 -> 9
A151: 1.599400599 | B151: =9 -> 9
A152: 1.603396603 | B152: =9 -> 9
A153: 1.607392607 | B153: =9 -> 9
A154: 1.611388611 | B154: =9 -> 9
A155: 1.615384615 | B155: =9 -> 9
A156: 1.619380619 | B156: =9 -> 9
A157: 1.623376623 | B157: =9 -> 9
A158: 1.627372627 | B158: =9 -> 9
A159: 1.631368631 | B159: =9 -> 9
A160: 1.635364635 | B160: =9 -> 9
A161: 1.639360639 | B161: =9 -> 9
A162: 1.643356643 | B162: =9 -> 9
A163: 1.647352647 | B163: =9 -> 9
A164: 1.651348651 | B164: =9 -> 9
A165: 1.655344655 | B165: =9 -> 9
A166: 1.659340659 | B166: =9 -> 9
A167: 1.663336663 | B167: =9 -> 9
A168: 1.667332667 | B168: =9 -> 9
A169: 1.671328671 | B169: =9 -> 9
A170: 1.675324675 | B170: =9 -> 9
A171: 1.679320679 | B171: =9 -> 9
A172: 1.683316683 | B172: =9 -> 9
A173: 1.687312687 | B173: =9 -> 9
A174: 1.691308691 | B174: =9 -> 9
A175: 1.695304695 | B175: =9 -> 9
A176: 1.699300699 | B176: =9 -> 9
A177: 1.703296703 | B177: =9 -> 9
A178: 1.707292707 | B178: =9 -> 9
A179: 1.711288711 | B179: =9 -> 9
A180: 1.715284715 | B180: =9 -> 9
A181: 1.719280719 | B181: =9 -> 9
A182: 1.723276723 | B182: =9 -> 9
A183: 1.727272727 | B183: =9 -> 9
A184: 1.731268731 | B184: =9 -> 9
A185: 1.735264735 | B185: =9 -> 9
A186: 1.739260739 | B186: =9 -> 9
A187: 1.743256743 | B187: =9 -> 9
A188: 1.747252747 | B188: =9 -> 9
A189: 1.751248751 | B189: =9 -> 9
A190: 1.755244755 | B190: =9 -> 9
A191: 1.759240759 | B191: =9 -> 9
A192: 1.763236763 | B192: =9 -> 9
A193: 1.767232767 | B193: =9 -> 9
A194: =A193+dx -> 1.771228771 | B194: =9 -> 9
A195: 1.775224775 | B195: =9 -> 9
A196: 1.779220779 | B196: =9 -> 9
A197: 1.783216783 | B197: =9 -> 9
A198: 1.787212787 | B198: =9 -> 9
A199: 1.791208791 | B199: =9 -> 9
A200: 1.795204795 | B200: =9 -> 9
... 803 more rows

Sheet Defining Function
A1: Defining a Function in Excel
A3: Computers have very specific rules you must follow when defining a function. If you don't, the program will either not work at all or will work incorrectly.
A5: 1. The Variable used should be the one named in the instruction, usually x, though sometimes y, t, Q (for an angle theta),
A6: or even x and y (for a function of two variables).
A8: 2. Order of Operations: There five arithmetic operations, addition (+), subtraction (-), multiplication (*), division (/), and exponentiation or power (^). When computers see any of these operation symbols, they perform the indicated steps in a very particular order. First, the power is done. Second, products and quotients of adjacent terms is done. Third, and last, sums and differences of adjacent terms are done. So, in 10*x^3 + 5*x – 7, say with x = 2, the first pass only calculates 2^3 and ignores the multiplications and the sums and differences to calculate 2^3 = 8. The second pass looks at 10*8 + 5*2 – 7 and only does the multiplications, so it produces 80 + 10 - 7. The third pass looks at the +’s and –‘s to produce 80 + 10 – 7 = 83.
A10: 3. Parentheses If you need an operation involving more than two adjacent terms, as in Ö4^3 + 6^2, the computer would take the square root of 4 to produce 2^3 + 6^2; it would then cube the 2 and square the 6 to produce 8 + 36; and finally it would add the 8 and the 36 to get 44. If you actually wanted the square root of the entire expression, you would need to use parentheses, as in Ö(4^3 + 6^2) to tell the computer to do all the operations inside the parentheses before taking the square root. Therefore, it would calculate (4^3 + 6^2) = 64 + 36 = 100 and then take the square root of Ö100 = 10.
A12: 4. Built-In Functions Computer programs have built-in functions for most common algebraic functions. In Excel, the square root function is denoted by SQRT(…), so SQRT(100) = 10. Alternatively, you could enter it as 100^.5 or 100^(1/2); notice that parentheses are needed to have the ½ done first. The common trig functions are SIN (…), COS (…), and TAN (…), where the arguments are automatically interpreted as being in radians, not degrees. The logarithm to the base 10 is represented by LOG (…) and the logarithm with the base e, known as the natural logarithm, is LN (…). The corresponding exponential function with base e is EXP (x). If x is the variable, then each of these would be SQRT (x), SIN (x), COS (x), TAN (x), LOG (x) (for log with base 10 ), LN (x) (for log with base e ), and EXP (x).
